[Event "Mistrovství Čech mládeže 2023 - HD16"]
[Site "Harrachov, Czech Republic"]
[Date "2023.10.25"]
[Round "6.7"]
[White "Kaplanová, Dominika"]
[Black "Martinkovič, Adam"]
[Result "1/2-1/2"]
[TimeControl "90m + 30s"]
[WhiteElo "1782"]
[BlackElo "1680"]

1. e4 {[%clk 01:30:56]} {[%emt 00:00:03]} c6 {[%clk 01:27:17]} {[%emt
00:03:44]} 2. Nc3 {[%clk 01:30:55]} {[%emt 00:00:30]} d5 {[%clk 01:27:41]}
{[%emt 00:00:06]} 3. Qf3 {[%clk 01:30:45]} {[%emt 00:00:40]} dxe4 {[%clk
01:27:02]} {[%emt 00:01:09]} 4. Nxe4 {[%clk 01:30:58]} {[%emt 00:00:16]} Nf6
{[%clk 01:27:11]} {[%emt 00:00:21]} 5. Bc4 {[%clk 01:30:51]} {[%emt 00:00:37]}
e6 {[%clk 01:26:37]} {[%emt 00:01:05]} 6. Ne2 {[%clk 01:28:45]} {[%emt
00:02:36]} Nbd7 {[%clk 01:25:45]} {[%emt 00:01:22]} 7. Nxf6+ {[%clk 01:27:12]}
{[%emt 00:02:03]} Nxf6 {[%clk 01:25:56]} {[%emt 00:00:19]} 8. d4 {[%clk
01:24:51]} {[%emt 00:02:51]} Bd6 {[%clk 01:24:26]} {[%emt 00:02:01]} 9. c3
{[%clk 01:23:22]} {[%emt 00:01:59]} Bd7 {[%clk 01:22:38]} {[%emt 00:02:18]} 10.
Bg5 {[%clk 01:19:30]} {[%emt 00:04:21]} b5 {[%clk 01:20:58]} {[%emt 00:02:10]}
11. Bd3 {[%clk 01:15:35]} {[%emt 00:04:25]} h6 {[%clk 01:19:54]} {[%emt
00:01:34]} 12. Bxf6 {[%clk 01:13:15]} {[%emt 00:02:50]} Qxf6 {[%clk 01:20:15]}
{[%emt 00:00:09]} 13. Qxf6 {[%clk 01:05:37]} {[%emt 00:08:07]} gxf6 {[%clk
01:19:11]} {[%emt 00:01:35]} 14. Ng3 {[%clk 01:04:01]} {[%emt 00:02:05]} f5
{[%clk 01:19:05]} {[%emt 00:00:37]} 15. O-O {[%clk 01:02:35]} {[%emt 00:01:55]}
h5 {[%clk 01:15:57]} {[%emt 00:03:39]} 16. Rae1 {[%clk 01:00:45]} {[%emt
00:02:20]} O-O-O {[%clk 01:15:40]} {[%emt 00:00:48]} 17. Be2 {[%clk 00:53:12]}
{[%emt 00:08:02]} h4 {[%clk 01:15:09]} {[%emt 00:01:01]} 18. Nh5 {[%clk
00:53:03]} {[%emt 00:00:38]} Rdg8 {[%clk 01:14:37]} {[%emt 00:01:03]} 19. Nf6
{[%clk 00:47:17]} {[%emt 00:06:16]} Rg6 {[%clk 01:14:50]} {[%emt 00:00:18]} 20.
Nxd7 {[%clk 00:44:58]} {[%emt 00:02:49]} Kxd7 {[%clk 01:14:24]} {[%emt
00:00:56]} 1/2-1/2

[Event "Mistrovství Čech mládeže 2023 - HD16"]
[Site "Harrachov, Czech Republic"]
[Date "2023.10.25"]
[Round "6.8"]
[White "Garabik, Marek"]
[Black "Vyšinský, Otakar"]
[Result "0-1"]
[TimeControl "90m + 30s"]
[WhiteElo "1697"]
[BlackElo "1599"]

1. e4 {[%clk 01:30:34]} {[%emt 00:00:24]} e5 {[%clk 01:30:52]} {[%emt
00:00:09]} 2. Bc4 {[%clk 01:30:48]} {[%emt 00:00:17]} Nc6 {[%clk 01:31:03]}
{[%emt 00:00:19]} 3. Nf3 {[%clk 01:28:18]} {[%emt 00:03:00]} Nf6 {[%clk
01:31:19]} {[%emt 00:00:14]} 4. d3 {[%clk 01:28:21]} {[%emt 00:00:26]} Be7
{[%clk 01:31:37]} {[%emt 00:00:13]} 5. O-O {[%clk 01:23:06]} {[%emt 00:05:45]}
O-O {[%clk 01:31:53]} {[%emt 00:00:14]} 6. Re1 {[%clk 01:20:51]} {[%emt
00:02:45]} d6 {[%clk 01:29:21]} {[%emt 00:03:02]} 7. c3 {[%clk 01:19:31]}
{[%emt 00:01:50]} Na5 {[%clk 01:26:43]} {[%emt 00:03:08]} 8. Nbd2 {[%clk
01:10:58]} {[%emt 00:09:03]} c5 {[%clk 01:14:59]} {[%emt 00:12:15]} 9. b4
{[%clk 01:08:16]} {[%emt 00:03:11]} Nxc4 {[%clk 01:13:23]} {[%emt 00:02:06]} 10.
Nxc4 {[%clk 01:05:06]} {[%emt 00:03:39]} cxb4 {[%clk 01:07:55]} {[%emt
00:05:58]} 11. cxb4 {[%clk 01:05:34]} {[%emt 00:00:03]} d5 {[%clk 01:04:45]}
{[%emt 00:03:41]} 12. exd5 {[%clk 01:04:01]} {[%emt 00:02:03]} Bxb4 {[%clk
00:57:50]} {[%emt 00:07:24]} 13. Bd2 {[%clk 00:52:17]} {[%emt 00:12:13]} Nxd5
{[%clk 00:55:55]} {[%emt 00:02:26]} 14. Rxe5 {[%clk 00:52:42]} {[%emt
00:00:05]} Be7 {[%clk 00:50:54]} {[%emt 00:05:31]} 15. Re1 {[%clk 00:49:15]}
{[%emt 00:03:58]} Bf5 {[%clk 00:44:15]} {[%emt 00:07:09]} 16. Qb3 {[%clk
00:47:58]} {[%emt 00:01:47]} Rb8 {[%clk 00:38:09]} {[%emt 00:06:37]} 17. d4
{[%clk 00:40:44]} {[%emt 00:07:43]} Be6 {[%clk 00:34:54]} {[%emt 00:03:45]} 18.
Qb2 {[%clk 00:39:18]} {[%emt 00:01:56]} b5 {[%clk 00:30:18]} {[%emt 00:05:06]}
19. Nce5 {[%clk 00:37:30]} {[%emt 00:02:17]} Qb6 {[%clk 00:29:30]} {[%emt
00:01:18]} 20. Rac1 {[%clk 00:36:42]} {[%emt 00:01:18]} Rfc8 {[%clk 00:26:34]}
{[%emt 00:03:26]} 21. Nd3 {[%clk 00:32:41]} {[%emt 00:04:30]} a5 {[%clk
00:18:55]} {[%emt 00:08:10]} 22. Nf4 {[%clk 00:31:17]} {[%emt 00:01:54]} Nxf4
{[%clk 00:18:07]} {[%emt 00:01:18]} 23. Bxf4 {[%clk 00:31:33]} {[%emt
00:00:13]} Rxc1 {[%clk 00:16:37]} {[%emt 00:02:00]} 24. Rxc1 {[%clk 00:27:12]}
{[%emt 00:04:52]} Rc8 {[%clk 00:15:55]} {[%emt 00:01:12]} 25. Rb1 {[%clk
00:25:48]} {[%emt 00:01:54]} b4 {[%clk 00:12:51]} {[%emt 00:03:33]} 26. Re1
{[%clk 00:24:55]} {[%emt 00:01:23]} Bd6 {[%clk 00:11:07]} {[%emt 00:02:15]} 27.
Bxd6 {[%clk 00:24:14]} {[%emt 00:01:10]} Qxd6 {[%clk 00:11:35]} {[%emt
00:00:02]} 28. Ng5 {[%clk 00:23:22]} {[%emt 00:01:22]} Bd5 {[%clk 00:09:22]}
{[%emt 00:02:43]} 29. Ne4 {[%clk 00:19:23]} {[%emt 00:04:29]} Qe6 {[%clk
00:06:47]} {[%emt 00:03:05]} 30. Qe2 {[%clk 00:17:34]} {[%emt 00:02:19]} Qxe4
{[%clk 00:06:34]} {[%emt 00:00:44]} 0-1

[Event "Mistrovství Čech mládeže 2023 - HD16"]
[Site "Harrachov, Czech Republic"]
[Date "2023.10.25"]
[Round "6.9"]
[White "Bohatyrov, Mykola"]
[Black "Hrbek, Jáchym"]
[Result "0-1"]
[TimeControl "90m + 30s"]
[WhiteElo "1725"]
[BlackElo "1973"]

1. Nf3 {[%clk 01:30:53]} {[%emt 00:00:06]} d5 {[%clk 01:30:15]} {[%emt
00:00:45]} 2. b3 {[%clk 01:31:11]} {[%emt 00:00:13]} Nf6 {[%clk 01:30:18]}
{[%emt 00:00:26]} 3. Bb2 {[%clk 01:31:36]} {[%emt 00:00:05]} g6 {[%clk
01:30:33]} {[%emt 00:00:14]} 4. e3 {[%clk 01:31:57]} {[%emt 00:00:10]} Bg7
{[%clk 01:30:55]} {[%emt 00:00:07]} 5. d4 {[%clk 01:32:20]} {[%emt 00:00:08]}
O-O {[%clk 01:31:09]} {[%emt 00:00:15]} 6. c4 {[%clk 01:32:44]} {[%emt
00:00:07]} c5 {[%clk 01:31:24]} {[%emt 00:00:15]} 7. Be2 {[%clk 01:32:29]}
{[%emt 00:00:46]} cxd4 {[%clk 01:28:19]} {[%emt 00:03:36]} 8. exd4 {[%clk
01:32:52]} {[%emt 00:00:07]} Nc6 {[%clk 01:28:40]} {[%emt 00:00:08]} 9. O-O
{[%clk 01:32:31]} {[%emt 00:00:50]} Bg4 {[%clk 01:23:46]} {[%emt 00:05:25]} 10.
Ne5 {[%clk 01:26:01]} {[%emt 00:07:00]} Bxe2 {[%clk 01:18:33]} {[%emt
00:05:43]} 11. Qxe2 {[%clk 01:26:12]} {[%emt 00:00:19]} dxc4 {[%clk 01:12:06]}
{[%emt 00:06:56]} 12. Nxc6 {[%clk 01:26:21]} {[%emt 00:00:21]} bxc6 {[%clk
01:12:32]} {[%emt 00:00:04]} 13. Qxc4 {[%clk 01:25:53]} {[%emt 00:00:59]} Qd5
{[%emt 00:06:32]} 14. Qxd5 {[%clk 01:20:55]} {[%emt 00:01:35]} Nxd5 {[%clk
01:06:37]} {[%emt 00:04:15]} 15. Nd2 {[%clk 01:17:52]} {[%emt 00:03:34]} Nf4
{[%clk 01:06:32]} {[%emt 00:00:33]} 16. Nf3 {[%clk 01:18:00]} {[%emt 00:00:23]}
Rfd8 {[%clk 01:06:45]} {[%emt 00:00:16]} 17. Rad1 {[%clk 01:17:08]} {[%emt
00:01:23]} Ne6 {[%clk 00:34:29]} {[%emt 00:32:47]} 18. Ne5 {[%clk 01:12:55]}
{[%emt 00:04:43]} Rac8 {[%clk 00:34:36]} {[%emt 00:00:22]} 19. Rfe1 {[%clk
01:10:11]} {[%emt 00:03:15]} Rd5 {[%clk 00:33:40]} {[%emt 00:01:26]} 20. Rc1
{[%clk 01:09:05]} {[%emt 00:01:37]} c5 {[%clk 00:29:36]} {[%emt 00:04:34]} 21.
dxc5 {[%clk 01:06:24]} {[%emt 00:03:11]} Rcxc5 {[%clk 00:29:37]} {[%emt
00:00:28]} 22. Rxc5 {[%clk 01:04:11]} {[%emt 00:02:43]} Nxc5 {[%clk 00:26:09]}
{[%emt 00:03:58]} 23. f4 {[%clk 01:01:00]} {[%emt 00:03:41]} Bxe5 {[%clk
00:19:21]} {[%emt 00:07:18]} 24. Bxe5 {[%clk 01:00:36]} {[%emt 00:00:55]} Nd3
{[%clk 00:19:31]} {[%emt 00:00:19]} 25. Re4 {[%clk 00:55:46]} {[%emt 00:05:21]}
f6 {[%clk 00:19:27]} {[%emt 00:00:34]} 26. Bb8 {[%clk 00:53:58]} {[%emt
00:02:18]} Ra5 {[%clk 00:13:53]} {[%emt 00:06:03]} 27. Ra4 {[%clk 00:52:05]}
{[%emt 00:02:24]} Rxa4 {[%clk 00:12:29]} {[%emt 00:01:55]} 28. bxa4 {[%emt
00:00:06]} a6 {[%clk 00:12:53]} {[%emt 00:00:04]} 29. Bc7 {[%clk 00:51:13]}
{[%emt 00:01:46]} Nb4 {[%clk 00:10:19]} {[%emt 00:03:05]} 30. Ba5 {[%clk
00:50:06]} {[%emt 00:01:37]} Nc6 {[%clk 00:10:06]} {[%emt 00:00:43]} 31. Bc3
{[%clk 00:50:14]} {[%emt 00:00:22]} Kf7 {[%clk 00:10:24]} {[%emt 00:00:12]} 32.
Kf2 {[%clk 00:50:29]} {[%emt 00:00:15]} Ke6 {[%clk 00:10:45]} {[%emt 00:00:09]}
33. Ke3 {[%clk 00:49:01]} {[%emt 00:01:58]} Kd5 {[%clk 00:10:54]} {[%emt
00:00:18]} 34. Kd3 {[%clk 00:44:14]} {[%emt 00:05:19]} e5 {[%clk 00:09:59]}
{[%emt 00:01:26]} 35. fxe5 {[%clk 00:43:12]} {[%emt 00:01:33]} fxe5 {[%clk
00:10:27]} {[%emt 00:00:02]} 36. h3 {[%clk 00:41:17]} {[%emt 00:02:24]} Nd4
{[%clk 00:09:43]} {[%emt 00:01:14]} 37. Bd2 {[%clk 00:36:25]} {[%emt 00:05:22]}
e4+ {[%clk 00:06:56]} {[%emt 00:03:17]} 38. Kc3 {[%clk 00:36:04]} {[%emt
00:00:51]} Nc6 {[%clk 00:03:21]} {[%emt 00:04:05]} 39. Be3 {[%clk 00:30:21]}
{[%emt 00:06:12]} Ne5 {[%clk 00:03:05]} {[%emt 00:00:44]} 40. Bg5 {[%clk
00:26:06]} {[%emt 00:04:45]} Nc4 {[%clk 00:02:12]} {[%emt 00:01:27]} 41. Bd8
{[%clk 00:24:11]} {[%emt 00:02:24]} Ne3 {[%clk 00:01:58]} {[%emt 00:00:42]} 42.
g3 {[%clk 00:21:19]} {[%emt 00:03:23]} Nd1+ {[%clk 00:01:32]} {[%emt 00:00:57]}
43. Kc2 {[%clk 00:19:11]} {[%emt 00:02:39]} Nf2 {[%clk 00:01:48]} {[%emt
00:00:14]} 44. h4 {[%emt 00:00:47]} e3 {[%clk 00:01:55]} {[%emt 00:00:17]} 45.
Ba5 {[%clk 00:18:15]} {[%emt 00:01:13]} Ke4 {[%clk 00:02:06]} {[%emt 00:00:18]}
46. Bc3 {[%clk 00:16:06]} {[%emt 00:02:40]} Kf3 {[%clk 00:01:50]} {[%emt
00:00:45]} 47. Kb3 {[%clk 00:15:36]} {[%emt 00:01:01]} Ne4 {[%clk 00:01:52]}
{[%emt 00:00:28]} 48. Bb4 {[%clk 00:14:01]} {[%emt 00:02:05]} e2 {[%clk
00:01:17]} {[%emt 00:01:06]} 49. Kc4 {[%clk 00:13:04]} {[%emt 00:01:26]} Ke3
{[%clk 00:01:23]} {[%emt 00:00:24]} 0-1

[Event "Mistrovství Čech mládeže 2023 - HD16"]
[Site "Harrachov, Czech Republic"]
[Date "2023.10.25"]
[Round "6.10"]
[White "Dudková, Josefína"]
[Black "Tesař, Jakub"]
[Result "1-0"]
[TimeControl "90m + 30s"]
[WhiteElo "1587"]
[BlackElo "1893"]

1. c4 {[%clk 01:30:55]} {[%emt 00:00:05]} e5 {[%clk 01:30:21]} {[%emt
00:00:39]} 2. Nc3 {[%clk 01:31:11]} {[%emt 00:00:14]} Nf6 {[%clk 01:30:36]}
{[%emt 00:00:15]} 3. g3 {[%clk 01:31:26]} {[%emt 00:00:14]} d5 {[%clk
01:31:00]} {[%emt 00:00:07]} 4. cxd5 {[%clk 01:31:49]} {[%emt 00:00:07]} Nxd5
{[%clk 01:31:23]} {[%emt 00:00:07]} 5. Bg2 {[%clk 01:32:10]} {[%emt 00:00:09]}
Nb6 {[%clk 01:31:40]} {[%emt 00:00:14]} 6. Nf3 {[%clk 01:31:46]} {[%emt
00:00:53]} Nc6 {[%clk 01:32:04]} {[%emt 00:00:07]} 7. O-O {[%clk 01:30:53]}
{[%emt 00:01:23]} Be6 {[%clk 01:32:16]} {[%emt 00:00:18]} 8. a3 {[%clk
01:26:28]} {[%emt 00:04:54]} a5 {[%clk 01:20:16]} {[%emt 00:12:30]} 9. d3
{[%clk 01:23:27]} {[%emt 00:03:31]} f6 {[%clk 01:15:50]} {[%emt 00:04:57]} 10.
Be3 {[%clk 01:19:08]} {[%emt 00:04:48]} Nd5 {[%clk 01:06:28]} {[%emt 00:09:52]}
11. Nxd5 {[%clk 01:10:48]} {[%emt 00:08:49]} Bxd5 {[%clk 01:06:41]} {[%emt
00:00:18]} 12. Qc2 {[%clk 01:08:31]} {[%emt 00:02:47]} a4 {[%clk 00:52:48]}
{[%emt 00:14:23]} 13. Rac1 {[%clk 01:03:13]} {[%emt 00:05:48]} Qd7 {[%clk
00:38:52]} {[%emt 00:14:26]} 14. Nd2 {[%clk 00:58:01]} {[%emt 00:05:42]} Bxg2
{[%clk 00:38:00]} {[%emt 00:01:23]} 15. Kxg2 {[%clk 00:58:28]} {[%emt
00:00:02]} g5 {[%clk 00:30:57]} {[%emt 00:07:33]} 16. Ne4 {[%clk 00:51:20]}
{[%emt 00:07:38]} Be7 {[%clk 00:30:19]} {[%emt 00:01:08]} 17. Bc5 {[%clk
00:47:42]} {[%emt 00:04:08]} h5 {[%clk 00:20:49]} {[%emt 00:10:00]} 18. Bxe7
{[%clk 00:44:14]} {[%emt 00:03:58]} Qxe7 {[%clk 00:19:17]} {[%emt 00:02:02]} 19.
Nc5 {[%clk 00:40:37]} {[%emt 00:04:07]} Nd4 {[%clk 00:18:24]} {[%emt 00:01:23]}
20. Qc4 {[%clk 00:35:27]} {[%emt 00:05:40]} b5 {[%clk 00:14:06]} {[%emt
00:04:48]} 21. Qb4 {[%clk 00:31:07]} {[%emt 00:04:49]} Nxe2 {[%clk 00:04:32]}
{[%emt 00:10:05]} 22. Qe4 {[%clk 00:25:42]} {[%emt 00:05:55]} Nxc1 {[%clk
00:04:03]} {[%emt 00:00:59]} 23. Qxa8+ {[%clk 00:25:12]} {[%emt 00:01:00]} Kf7
{[%clk 00:04:32]} 24. Qd5+ {[%clk 00:24:28]} {[%emt 00:01:15]} Kg6 {[%clk
00:04:26]} {[%emt 00:00:35]} 25. Rxc1 {[%clk 00:24:15]} {[%emt 00:00:44]} Rd8
{[%clk 00:04:34]} {[%emt 00:00:22]} 26. Qe4+ {[%clk 00:23:14]} {[%emt
00:01:31]} Kh6 {[%clk 00:04:49]} {[%emt 00:00:15]} 27. Qc6 {[%clk 00:22:19]}
{[%emt 00:01:26]} Rd6 {[%clk 00:03:45]} {[%emt 00:01:34]} 28. Qxb5 {[%clk
00:19:22]} {[%emt 00:03:27]} Rb6 {[%clk 00:04:08]} {[%emt 00:00:08]} 29. Qxa4
{[%clk 00:19:01]} {[%emt 00:00:50]} Rxb2 {[%clk 00:04:25]} {[%emt 00:00:12]} 30.
Ne4 {[%clk 00:18:45]} {[%emt 00:00:46]} Ra2 {[%clk 00:00:44]} {[%emt 00:04:11]}
31. Qc6 {[%clk 00:17:37]} {[%emt 00:01:38]} Rxa3 {[%clk 00:00:41]} {[%emt
00:00:33]} 32. Nxf6 {[%clk 00:17:29]} {[%emt 00:00:38]} Rxd3 {[%clk 00:00:37]}
{[%emt 00:00:35]} 33. Ng8+ {[%clk 00:17:45]} {[%emt 00:00:14]} 1-0

[Event "Mistrovství Čech mládeže 2023 - HD16"]
[Site "Harrachov, Czech Republic"]
[Date "2023.10.25"]
[Round "6.11"]
[White "Meca, Viktor"]
[Black "Tegda, Vojtěch"]
[Result "0-1"]
[TimeControl "90m + 30s"]
[WhiteElo "1559"]
[BlackElo "1731"]

1. e4 {[%clk 01:30:54]} {[%emt 00:00:04]} e5 {[%clk 01:30:57]} {[%emt
00:00:04]} 2. Nf3 {[%clk 01:31:08]} {[%emt 00:00:16]} Nc6 {[%clk 01:31:13]}
{[%emt 00:00:14]} 3. Bb5 {[%clk 01:31:23]} {[%emt 00:00:15]} g6 {[%clk
01:31:20]} {[%emt 00:00:22]} 4. c3 {[%clk 01:30:55]} {[%emt 00:00:58]} Bg7
{[%clk 01:31:37]} {[%emt 00:00:13]} 5. d4 {[%clk 01:30:39]} {[%emt 00:00:46]}
Nf6 {[%clk 01:30:57]} {[%emt 00:01:11]} 6. dxe5 {[%clk 01:29:23]} {[%emt
00:01:47]} Nxe4 {[%clk 01:10:25]} {[%emt 00:21:02]} 7. Qd5 {[%clk 01:20:59]}
{[%emt 00:08:50]} f5 {[%clk 01:10:33]} {[%emt 00:00:24]} 8. Nbd2 {[%clk
01:19:53]} {[%emt 00:01:35]} Ne7 {[%clk 01:08:06]} {[%emt 00:02:59]} 9. Qb3
{[%clk 01:19:32]} {[%emt 00:00:50]} Nc5 {[%clk 01:07:51]} {[%emt 00:00:44]} 10.
Qa3 {[%clk 01:18:13]} {[%emt 00:01:51]} Ne6 {[%clk 01:06:37]} {[%emt 00:01:43]}
11. Nb3 {[%clk 01:15:38]} {[%emt 00:03:05]} O-O {[%clk 01:01:04]} {[%emt
00:06:04]} 12. Nbd4 {[%clk 01:11:29]} {[%emt 00:04:37]} Nc6 {[%clk 00:55:18]}
{[%emt 00:06:18]} 13. Nxe6 {[%clk 00:59:02]} {[%emt 00:12:57]} dxe6 {[%clk
00:55:37]} {[%emt 00:00:10]} 14. Bxc6 {[%clk 00:58:47]} {[%emt 00:00:46]} bxc6
{[%clk 00:56:00]} {[%emt 00:00:08]} 15. O-O {[%clk 00:58:53]} {[%emt 00:00:22]}
Qd5 {[%clk 00:41:26]} {[%emt 00:15:04]} 16. Re1 {[%clk 00:56:14]} {[%emt
00:03:10]} f4 {[%clk 00:40:25]} {[%emt 00:01:32]} 17. Bd2 {[%clk 00:41:10]}
{[%emt 00:15:34]} c5 {[%clk 00:40:29]} {[%emt 00:00:25]} 18. Rad1 {[%clk
00:40:13]} {[%emt 00:01:26]} Qc6 {[%clk 00:36:23]} {[%emt 00:04:37]} 19. b4
{[%clk 00:35:04]} {[%emt 00:05:39]} Bb7 {[%clk 00:34:44]} {[%emt 00:02:08]} 20.
Qa5 {[%clk 00:31:10]} {[%emt 00:04:24]} cxb4 {[%clk 00:33:38]} {[%emt
00:01:37]} 21. cxb4 {[%clk 00:31:28]} {[%emt 00:00:12]} Qb6 {[%clk 00:32:20]}
{[%emt 00:01:48]} 22. Qa3 {[%clk 00:27:39]} {[%emt 00:04:19]} Rf5 {[%clk
00:31:27]} {[%emt 00:01:23]} 23. Qc3 {[%clk 00:23:39]} {[%emt 00:04:30]} Raf8
{[%clk 00:29:46]} {[%emt 00:02:11]} 24. a4 {[%clk 00:21:42]} {[%emt 00:02:28]}
Ba8 {[%clk 00:29:13]} {[%emt 00:01:02]} 25. Rc1 {[%clk 00:17:35]} {[%emt
00:04:38]} Rc8 {[%clk 00:29:30]} {[%emt 00:00:12]} 26. a5 {[%clk 00:12:37]}
{[%emt 00:05:29]} Qb7 {[%clk 00:26:01]} {[%emt 00:03:58]} 27. Qc5 {[%clk
00:11:14]} {[%emt 00:01:54]} Rg5 {[%clk 00:25:27]} {[%emt 00:01:03]} 28. Qc6
{[%clk 00:10:05]} {[%emt 00:01:40]} Rxg2+ {[%clk 00:24:09]} {[%emt 00:01:47]}
29. Kxg2 {[%clk 00:10:28]} {[%emt 00:00:07]} Qxc6 {[%clk 00:24:36]} {[%emt
00:00:03]} 30. Rxc6 {[%clk 00:10:53]} {[%emt 00:00:06]} Bxc6 {[%clk 00:25:00]}
{[%emt 00:00:05]} 31. Bxf4 {[%clk 00:09:50]} {[%emt 00:01:33]} Rf8 {[%clk
00:22:38]} {[%emt 00:02:52]} 32. Kg3 {[%clk 00:09:16]} {[%emt 00:01:04]} Bxf3
{[%clk 00:23:04]} {[%emt 00:00:05]} 33. Kxf3 {[%clk 00:09:41]} {[%emt
00:00:05]} g5 {[%clk 00:23:31]} {[%emt 00:00:03]} 0-1

[Event "Mistrovství Čech mládeže 2023 - HD16"]
[Site "Harrachov, Czech Republic"]
[Date "2023.10.25"]
[Round "6.12"]
[White "Sadil, Antonín"]
[Black "Krupka, Aleš"]
[Result "1-0"]
[TimeControl "90m + 30s"]
[WhiteElo "1792"]
[BlackElo "1444"]

1. e4 {[%clk 01:30:55]} {[%emt 00:00:03]} e5 {[%clk 01:30:55]} {[%emt
00:00:06]} 2. Bc4 {[%clk 01:30:31]} {[%emt 00:00:53]} Nf6 {[%clk 01:30:28]}
{[%emt 00:00:58]} 3. d3 {[%clk 01:30:18]} {[%emt 00:00:43]} Bc5 {[%clk
01:29:00]} {[%emt 00:01:59]} 4. Nc3 {[%clk 01:29:51]} {[%emt 00:00:57]} Nc6
{[%clk 01:24:08]} {[%emt 00:05:22]} 5. Bg5 {[%clk 01:27:51]} {[%emt 00:02:28]}
h6 {[%clk 01:23:12]} {[%emt 00:01:28]} 6. Bh4 {[%clk 01:24:58]} {[%emt
00:03:22]} g5 {[%clk 01:12:50]} {[%emt 00:10:52]} 7. Bg3 {[%clk 01:25:27]}
{[%emt 00:00:02]} d6 {[%clk 01:12:39]} {[%emt 00:00:41]} 8. Nd5 {[%clk
01:22:21]} {[%emt 00:03:36]} Bd7 {[%clk 00:53:14]} {[%emt 00:19:55]} 9. Qf3
{[%clk 01:18:45]} {[%emt 00:04:04]} Nxd5 {[%clk 00:53:08]} {[%emt 00:00:37]} 10.
Bxd5 {[%clk 01:18:54]} {[%emt 00:00:21]} Qe7 {[%clk 00:51:27]} {[%emt
00:02:12]} 11. c3 {[%clk 01:18:12]} {[%emt 00:01:11]} Bb6 {[%clk 00:44:42]}
{[%emt 00:07:16]} 12. h4 {[%clk 01:13:07]} {[%emt 00:05:34]} g4 {[%clk
00:42:58]} {[%emt 00:02:14]} 13. Qe2 {[%clk 01:12:54]} {[%emt 00:00:43]} h5
{[%clk 00:35:43]} {[%emt 00:07:46]} 14. O-O-O {[%clk 01:10:54]} {[%emt
00:02:30]} O-O-O {[%clk 00:34:52]} {[%emt 00:01:21]} 15. Qd2 {[%clk 01:08:21]}
{[%emt 00:03:03]} Rdg8 {[%clk 00:31:48]} {[%emt 00:03:35]} 16. Ne2 {[%clk
01:07:27]} {[%emt 00:01:23]} Rg6 {[%clk 00:31:12]} {[%emt 00:01:06]} 17. Rhf1
{[%clk 01:04:01]} {[%emt 00:03:54]} f5 {[%clk 00:13:54]} {[%emt 00:17:49]} 18.
exf5 {[%clk 01:02:13]} {[%emt 00:02:19]} Bxf5 {[%clk 00:13:52]} {[%emt
00:00:32]} 19. Rde1 {[%clk 00:59:54]} {[%emt 00:02:48]} Qd7 {[%clk 00:09:47]}
{[%emt 00:04:36]} 20. f4 {[%clk 00:53:41]} {[%emt 00:06:43]} gxf3 {[%clk
00:07:55]} {[%emt 00:02:22]} 21. Bxf3 {[%clk 00:51:20]} {[%emt 00:02:50]} Rg7
{[%clk 00:05:40]} {[%emt 00:02:43]} 22. Bf2 {[%clk 00:50:30]} {[%emt 00:01:22]}
Bxf2 {[%clk 00:04:52]} {[%emt 00:01:18]} 23. Rxf2 {[%clk 00:50:58]} {[%emt
00:00:02]} Qe6 {[%clk 00:03:35]} {[%emt 00:01:47]} 24. b3 {[%clk 00:49:30]}
{[%emt 00:01:58]} Ne7 {[%clk 00:03:24]} {[%emt 00:00:41]} 25. Nd4 {[%clk
00:47:57]} {[%emt 00:02:03]} Qg6 {[%clk 00:01:48]} {[%emt 00:02:00]} 26. Nxf5
{[%clk 00:47:53]} {[%emt 00:00:40]} Nxf5 {[%clk 00:02:13]} {[%emt 00:00:05]} 27.
Be4 {[%clk 00:47:27]} {[%emt 00:00:56]} Rf8 {[%clk 00:00:32]} {[%emt 00:02:12]}
28. Ref1 {[%clk 00:47:07]} {[%emt 00:00:50]} Rgf7 {[%clk 00:00:57]} {[%emt
00:00:06]} 29. Qg5 {[%clk 00:44:10]} {[%emt 00:03:25]} Qxg5+ {[%clk 00:01:24]}
{[%emt 00:00:04]} 30. hxg5 {[%clk 00:44:22]} {[%emt 00:00:19]} Nh6 {[%clk
00:01:31]} {[%emt 00:00:23]} 31. Rxf7 {[%clk 00:44:30]} {[%emt 00:00:22]} Rxf7
{[%clk 00:01:44]} {[%emt 00:00:17]} 32. Rxf7 {[%clk 00:44:39]} {[%emt
00:00:21]} Nxf7 {[%clk 00:02:11]} {[%emt 00:00:03]} 33. g6 {[%clk 00:44:58]}
{[%emt 00:00:10]} Nh6 {[%clk 00:02:21]} {[%emt 00:00:11]} 34. g7 {[%clk
00:45:17]} {[%emt 00:00:21]} Kd7 {[%clk 00:00:59]} {[%emt 00:01:51]} 35. Bh7
{[%clk 00:45:16]} {[%emt 00:00:31]} b6 {[%clk 00:00:45]} {[%emt 00:00:45]} 36.
g8=Q {[%clk 00:45:35]} {[%emt 00:00:10]} Nxg8 {[%clk 00:01:00]} {[%emt
00:00:15]} 37. Bxg8 {[%clk 00:46:03]} {[%emt 00:00:02]} c5 {[%clk 00:01:20]}
{[%emt 00:00:11]} 38. Bd5 {[%clk 00:46:01]} {[%emt 00:00:31]} h4 {[%clk
00:01:36]} {[%emt 00:00:14]} 39. Kd2 {[%clk 00:46:13]} {[%emt 00:00:18]} Ke7
{[%clk 00:01:55]} {[%emt 00:00:11]} 40. Ke3 {[%clk 00:46:27]} {[%emt 00:00:17]}
Kf6 {[%clk 00:02:18]} {[%emt 00:00:08]} 41. Ke4 {[%clk 00:46:06]} {[%emt
00:00:50]} Kg5 {[%clk 00:02:37]} {[%emt 00:00:11]} 42. Be6 {[%clk 00:46:24]}
{[%emt 00:00:12]} Kf6 {[%clk 00:02:57]} {[%emt 00:00:10]} 43. Bh3 {[%clk
00:46:21]} {[%emt 00:00:34]} 1-0